[Event "Live Chess"]
[Site "Chess.com"]
[Date "2024.06.01"]
[Round "-"]
[White "alicechristina"]
[Black "Bob2pen"]
[Result "1-0"]
[WhiteElo "1706"]
[BlackElo "1797"]
[TimeControl "300"]
[EndTime "9:35:51 PDT"]
[Termination "alicechristina won by checkmate"]

1. c4 {[%clk 0:04:58]} 1... e5 {[%clk 0:04:58]} 2. Nc3 {[%clk 0:04:57.6]} 2...
Nf6 {[%clk 0:04:56.9]} 3. g3 {[%clk 0:04:57.1]} 3... d5 {[%clk 0:04:55.9]} 4.
cxd5 {[%clk 0:04:55.3]} 4... Nxd5 {[%clk 0:04:54.8]} 5. Bg2 {[%clk 0:04:54.9]}
5... Nb6 {[%clk 0:04:53.5]} 6. d3 {[%clk 0:04:51.2]} 6... Be7 {[%clk 0:04:50.9]}
7. Be3 {[%clk 0:04:49.7]} 7... O-O {[%clk 0:04:48.8]} 8. h4 {[%clk 0:04:48.8]}
8... c6 {[%clk 0:04:38.7]} 9. Nh3 {[%clk 0:04:45.9]} 9... Be6 {[%clk 0:04:37.4]}
10. Ng5 {[%clk 0:04:43]} 10... Bxg5 {[%clk 0:04:32.8]} 11. hxg5 {[%clk
0:04:41.6]} 11... Nd5 {[%clk 0:04:30.6]} 12. Bd2 {[%clk 0:04:32.2]} 12... Nd7
{[%clk 0:04:27]} 13. Be4 {[%clk 0:04:30.3]} 13... g6 {[%clk 0:04:21.7]} 14. Qc2
{[%clk 0:04:15.9]} 14... Nc5 {[%clk 0:04:15.8]} 15. Bxd5 {[%clk 0:04:03.1]}
15... Bxd5 {[%clk 0:04:11.2]} 16. Rh6 {[%clk 0:04:00.3]} 16... Ne6 {[%clk
0:04:01.7]} 17. f4 {[%clk 0:03:52.6]} 17... Ng7 {[%clk 0:03:53.1]} 18. O-O-O
{[%clk 0:03:50]} 18... Nf5 {[%clk 0:03:51.5]} 19. Rh3 {[%clk 0:03:48]} 19... Be6
{[%clk 0:03:40.3]} 20. Rdh1 {[%clk 0:03:43.7]} 20... h5 {[%clk 0:03:38.7]} 21.
g4 {[%clk 0:03:34.2]} 21... Nd4 {[%clk 0:03:36.6]} 22. Qd1 {[%clk 0:03:29.1]}
22... Bxg4 {[%clk 0:03:34.2]} 23. R3h2 {[%clk 0:03:26.9]} 23... b5 {[%clk
0:03:24.4]} 24. Ne4 {[%clk 0:03:25.5]} 24... Nxe2+ {[%clk 0:03:16.5]} 25. Rxe2
{[%clk 0:03:20.8]} 25... Qxd3 {[%clk 0:03:11.3]} 26. Nf6+ {[%clk 0:03:17.5]}
26... Kg7 {[%clk 0:03:09.8]} 27. Nxg4 {[%clk 0:03:16.4]} 27... hxg4 {[%clk
0:03:04]} 28. Bc3 {[%clk 0:03:02.3]} 28... Qc4 {[%clk 0:02:59]} 29. Kb1 {[%clk
0:02:54.9]} 29... Rad8 {[%clk 0:02:40.7]} 30. Bxe5+ {[%clk 0:02:49]} 30... f6
{[%clk 0:02:38.6]} 31. Bxf6+ {[%clk 0:02:46.8]} 31... Rxf6 {[%clk 0:02:37]} 32.
gxf6+ {[%clk 0:02:45.6]} 32... Kf7 {[%clk 0:02:35.2]} 33. Rh7+ {[%clk 0:02:41]}
33... Kxf6 {[%clk 0:02:31.1]} 34. Qxd8+ {[%clk 0:02:38.5]} 34... Kf5 {[%clk
0:02:29.9]} 35. Qg5# {[%clk 0:02:33.6]} 1-0

[Event "Live Chess"]
[Site "Chess.com"]
[Date "2024.06.01"]
[Round "-"]
[White "gunslinger222"]
[Black "Ferrarifan27"]
[Result "1-0"]
[WhiteElo "2284"]
[BlackElo "2070"]
[TimeControl "300"]
[EndTime "9:35:54 PDT"]
[Termination "gunslinger222 won by resignation"]

1. d4 {[%clk 0:04:57.4]} 1... Nf6 {[%clk 0:04:58.8]} 2. c4 {[%clk 0:04:57]} 2...
e6 {[%clk 0:04:57.1]} 3. Nc3 {[%clk 0:04:55.3]} 3... Bb4 {[%clk 0:04:56.1]} 4.
e3 {[%clk 0:04:54.6]} 4... c5 {[%clk 0:04:53.5]} 5. Bd3 {[%clk 0:04:52.4]} 5...
Nc6 {[%clk 0:04:51.6]} 6. Ne2 {[%clk 0:04:51.6]} 6... d6 {[%clk 0:04:47.1]} 7.
O-O {[%clk 0:04:47.2]} 7... e5 {[%clk 0:04:45.3]} 8. d5 {[%clk 0:04:45.1]} 8...
Bxc3 {[%clk 0:04:36.1]} 9. dxc6 {[%clk 0:04:35.4]} 9... Ba5 {[%clk 0:04:32.4]}
10. cxb7 {[%clk 0:04:19.9]} 10... Bxb7 {[%clk 0:04:31.5]} 11. Qa4+ {[%clk
0:04:14.9]} 11... Nd7 {[%clk 0:04:30.6]} 12. Bf5 {[%clk 0:04:08.2]} 12... Bc7
{[%clk 0:04:17.8]} 13. f4 {[%clk 0:03:41.6]} 13... g6 {[%clk 0:04:13.1]} 14.
Bxd7+ {[%clk 0:03:36.2]} 14... Qxd7 {[%clk 0:04:12.2]} 15. Qxd7+ {[%clk
0:03:34.5]} 15... Kxd7 {[%clk 0:04:12.1]} 16. fxe5 {[%clk 0:03:33.7]} 16... Rhf8
{[%clk 0:04:08]} 17. exd6 {[%clk 0:03:26.6]} 17... Bxd6 {[%clk 0:04:06.7]} 18.
Bd2 {[%clk 0:03:11]} 18... Rad8 {[%clk 0:03:59.5]} 19. Rad1 {[%clk 0:03:08.6]}
19... Kc8 {[%clk 0:03:56.9]} 20. Ba5 {[%clk 0:03:04]} 20... Bc7 {[%clk
0:03:53.6]} 21. Bxc7 {[%clk 0:03:01.3]} 21... Kxc7 {[%clk 0:03:53.5]} 22. Nc3
{[%clk 0:02:59]} 22... f5 {[%clk 0:03:48.9]} 23. Kf2 {[%clk 0:02:53.5]} 23...
Rfe8 {[%clk 0:03:45.5]} 24. g3 {[%clk 0:02:49.4]} 24... a6 {[%clk 0:03:34.9]}
25. Na4 {[%clk 0:02:42.9]} 25... Re5 {[%clk 0:03:22.8]} 26. Rxd8 {[%clk
0:02:31.2]} 26... Kxd8 {[%clk 0:03:22.7]} 27. Rd1+ {[%clk 0:02:30.3]} 27... Kc7
{[%clk 0:03:19.8]} 28. b3 {[%clk 0:02:27.9]} 28... Bc6 {[%clk 0:03:11]} 29. Nb2
{[%clk 0:02:26.4]} 29... Re7 {[%clk 0:02:59.2]} 30. Nd3 {[%clk 0:02:18]} 30...
Kb6 {[%clk 0:02:56.9]} 31. Nf4 {[%clk 0:02:11.7]} 31... Rd7 {[%clk 0:02:47.3]}
32. Rxd7 {[%clk 0:01:57.8]} 32... Bxd7 {[%clk 0:02:47.2]} 33. Nd5+ {[%clk
0:01:56.9]} 33... Kc6 {[%clk 0:02:42.8]} 34. Nf6 {[%clk 0:01:50.1]} 34... h6
{[%clk 0:02:33.3]} 35. Nxd7 {[%clk 0:01:48.6]} 35... Kxd7 {[%clk 0:02:33.2]} 36.
Kf3 {[%clk 0:01:47.1]} 36... Ke6 {[%clk 0:02:27]} 37. e4 {[%clk 0:01:46.2]}
37... Ke5 {[%clk 0:02:21.3]} 38. exf5 {[%clk 0:01:45]} 38... Kxf5 {[%clk
0:02:19.4]} 39. h3 {[%clk 0:01:35.3]} 39... Ke5 {[%clk 0:02:17.4]} 40. Ke3
{[%clk 0:01:31.9]} 40... a5 {[%clk 0:02:07.9]} 41. a3 {[%clk 0:01:28.1]} 41...
Kf5 {[%clk 0:02:01.6]} 42. Kd3 {[%clk 0:01:25.9]} 42... Ke5 {[%clk 0:01:57.7]}
43. Kc3 {[%clk 0:01:24.6]} 43... g5 {[%clk 0:01:39.8]} 44. b4 {[%clk 0:01:23.9]}
44... axb4+ {[%clk 0:01:38.6]} 45. axb4 {[%clk 0:01:23.4]} 45... cxb4+ {[%clk
0:01:37.7]} 46. Kxb4 {[%clk 0:01:23.3]} 46... Kd6 {[%clk 0:01:34.5]} 47. Kb5
{[%clk 0:01:21.6]} 47... Kc7 {[%clk 0:01:30.1]} 48. Kc5 {[%clk 0:01:20.7]} 48...
h5 {[%clk 0:01:29.3]} 49. Kd5 {[%clk 0:01:17.1]} 49... Kd7 {[%clk 0:01:24.9]}
50. Ke5 {[%clk 0:01:14.7]} 50... h4 {[%clk 0:01:24.3]} 51. g4 {[%clk 0:01:12.8]}
51... Kc6 {[%clk 0:01:23]} 52. Kf5 {[%clk 0:01:12.1]} 52... Kc5 {[%clk
0:01:22.4]} 53. Kxg5 {[%clk 0:01:11.7]} 53... Kxc4 {[%clk 0:01:21.9]} 54. Kxh4
{[%clk 0:01:11.6]} 1-0

[Event "Live Chess"]
[Site "Chess.com"]
[Date "2024.06.01"]
[Round "-"]
[White "GEMdzq"]
[Black "TedUdale"]
[Result "1-0"]
[WhiteElo "2356"]
[BlackElo "2154"]
[TimeControl "300"]
[EndTime "9:35:56 PDT"]
[Termination "GEMdzq won by checkmate"]

1. e4 {[%clk 0:04:57]} 1... c6 {[%clk 0:04:58.8]} 2. d4 {[%clk 0:04:56.1]} 2...
d5 {[%clk 0:04:58.2]} 3. e5 {[%clk 0:04:55.8]} 3... Bf5 {[%clk 0:04:57]} 4. h4
{[%clk 0:04:55.5]} 4... e6 {[%clk 0:04:55.4]} 5. g4 {[%clk 0:04:52.5]} 5... Qa5+
{[%clk 0:04:45.9]} 6. Nc3 {[%clk 0:04:44.9]} 6... Ne7 {[%clk 0:04:39.4]} 7. gxf5
{[%clk 0:04:43]} 7... Nxf5 {[%clk 0:04:39.3]} 8. Nf3 {[%clk 0:04:36.6]} 8... Nd7
{[%clk 0:04:38]} 9. Bd3 {[%clk 0:04:34.8]} 9... g6 {[%clk 0:04:36.4]} 10. Bxf5
{[%clk 0:04:33.2]} 10... gxf5 {[%clk 0:04:35.1]} 11. Bg5 {[%clk 0:04:32]} 11...
c5 {[%clk 0:04:33.8]} 12. Qd2 {[%clk 0:04:28.1]} 12... cxd4 {[%clk 0:04:29.6]}
13. Qxd4 {[%clk 0:04:24.3]} 13... Bc5 {[%clk 0:04:28.3]} 14. Qa4 {[%clk
0:04:23.2]} 14... Qc7 {[%clk 0:04:26.5]} 15. Nb5 {[%clk 0:04:12.4]} 15... Qc6
{[%clk 0:04:22.8]} 16. Nd6+ {[%clk 0:04:02.8]} 16... Bxd6 {[%clk 0:04:21.6]} 17.
Qxc6 {[%clk 0:04:02.1]} 17... bxc6 {[%clk 0:04:21]} 18. exd6 {[%clk 0:04:01.6]}
18... f6 {[%clk 0:04:18]} 19. Bd2 {[%clk 0:03:56.7]} 19... e5 {[%clk 0:04:16.7]}
20. h5 {[%clk 0:03:54.7]} 20... Kf7 {[%clk 0:04:14]} 21. O-O-O {[%clk
0:03:51.9]} 21... Ke6 {[%clk 0:04:11.3]} 22. Rhg1 {[%clk 0:03:41.4]} 22... Rhg8
{[%clk 0:04:09.5]} 23. c4 {[%clk 0:03:26.7]} 23... Kxd6 {[%clk 0:04:05.5]} 24.
cxd5 {[%clk 0:03:23.1]} 24... cxd5 {[%clk 0:04:05]} 25. Bb4+ {[%clk 0:03:22.2]}
25... Kc6 {[%clk 0:04:01.3]} 26. Kb1 {[%clk 0:03:19.1]} 26... a5 {[%clk
0:03:56]} 27. Rc1+ {[%clk 0:03:14.5]} 27... Kb5 {[%clk 0:03:53.3]} 28. Bd6
{[%clk 0:03:07.1]} 28... Nb6 {[%clk 0:03:44.4]} 29. Rc5+ {[%clk 0:02:55.1]}
29... Ka6 {[%clk 0:03:40.2]} 30. Rgc1 {[%clk 0:02:40.3]} 30... Rac8 {[%clk
0:03:35.3]} 31. Be7 {[%clk 0:02:31.9]} 31... Rxc5 {[%clk 0:03:33.1]} 32. Rxc5
{[%clk 0:02:31.8]} 32... e4 {[%clk 0:03:20.1]} 33. Nd4 {[%clk 0:02:27.1]} 33...
f4 {[%clk 0:03:08.6]} 34. Bxf6 {[%clk 0:02:22.2]} 34... Rg1+ {[%clk 0:02:56.7]}
35. Rc1 {[%clk 0:02:20.1]} 35... Rg2 {[%clk 0:02:55.8]} 36. f3 {[%clk
0:01:57.2]} 36... e3 {[%clk 0:02:36.4]} 37. b3 {[%clk 0:01:55.7]} 37... Nd7
{[%clk 0:02:31.3]} 38. Bd8 {[%clk 0:01:28.3]} 38... Ne5 {[%clk 0:02:29.2]} 39.
Bc7 {[%clk 0:00:54.3]} 39... Nd3 {[%clk 0:02:27.9]} 40. Rd1 {[%clk 0:00:50.6]}
40... e2 {[%clk 0:02:01.8]} 41. Nxe2 {[%clk 0:00:49.1]} 41... Nf2 {[%clk
0:01:43.4]} 42. Rxd5 {[%clk 0:00:46.4]} 42... Nh3 {[%clk 0:01:35.9]} 43. Nxf4
{[%clk 0:00:44.8]} 43... Rg1+ {[%clk 0:01:34.2]} 44. Kb2 {[%clk 0:00:42]} 44...
Nf2 {[%clk 0:01:32.9]} 45. Rd6+ {[%clk 0:00:36.5]} 45... Kb7 {[%clk 0:01:31.5]}
46. Bb6 {[%clk 0:00:34.8]} 46... Nd1+ {[%clk 0:01:22]} 47. Kc1 {[%clk
0:00:32.4]} 47... Rf1 {[%clk 0:01:20.8]} 48. Rxd1 {[%clk 0:00:31]} 48... Rxf3
{[%clk 0:01:17.8]} 49. Nd5 {[%clk 0:00:30.2]} 49... Kc6 {[%clk 0:01:14.8]} 50.
Bd8 {[%clk 0:00:28.6]} 50... Rh3 {[%clk 0:01:11.1]} 51. Bxa5 {[%clk 0:00:25.4]}
51... Rxh5 {[%clk 0:01:09.5]} 52. Ne7+ {[%clk 0:00:21.2]} 52... Kb7 {[%clk
0:01:06.3]} 53. Bc3 {[%clk 0:00:20.8]} 53... Rc5 {[%clk 0:01:03.6]} 54. a4
{[%clk 0:00:20.6]} 54... Rxc3+ {[%clk 0:01:02]} 55. Kb2 {[%clk 0:00:20.5]} 55...
Re3 {[%clk 0:00:59.8]} 56. Nd5 {[%clk 0:00:19]} 56... Re5 {[%clk 0:00:58]} 57.
a5 {[%clk 0:00:18.3]} 57... h5 {[%clk 0:00:55.3]} 58. b4 {[%clk 0:00:17.7]}
58... Kc6 {[%clk 0:00:52.5]} 59. Nc3 {[%clk 0:00:15.9]} 59... h4 {[%clk
0:00:49.5]} 60. Kb3 {[%clk 0:00:15.6]} 60... Re3 {[%clk 0:00:48.4]} 61. Rh1
{[%clk 0:00:15.1]} 61... h3 {[%clk 0:00:47.4]} 62. Kc4 {[%clk 0:00:14.8]} 62...
Rg3 {[%clk 0:00:45.8]} 63. b5+ {[%clk 0:00:14.7]} 63... Kb7 {[%clk 0:00:43.3]}
64. a6+ {[%clk 0:00:14.3]} 64... Kb6 {[%clk 0:00:42.6]} 65. Nd5+ {[%clk
0:00:13.9]} 65... Ka5 {[%clk 0:00:41.1]} 66. Ra1+ {[%clk 0:00:11.4]} 66... Ra3
{[%clk 0:00:39.7]} 67. Rxa3# {[%clk 0:00:10.8]} 1-0

[Event "Live Chess"]
[Site "Chess.com"]
[Date "2024.06.01"]
[Round "-"]
[White "TheRedDrag"]
[Black "Trecregin"]
[Result "1-0"]
[WhiteElo "2177"]
[BlackElo "1824"]
[TimeControl "300"]
[EndTime "9:36:10 PDT"]
[Termination "TheRedDrag won by checkmate"]

1. e4 {[%clk 0:04:58.5]} 1... Nf6 {[%clk 0:04:58.4]} 2. e5 {[%clk 0:04:57.7]}
2... Ng8 {[%clk 0:04:57.6]} 3. d4 {[%clk 0:04:56.9]} 3... d6 {[%clk 0:04:57.1]}
4. exd6 {[%clk 0:04:54.5]} 4... exd6 {[%clk 0:04:56.2]} 5. Nf3 {[%clk
0:04:54.1]} 5... d5 {[%clk 0:04:55.8]} 6. c4 {[%clk 0:04:52.8]} 6... Nf6 {[%clk
0:04:54.3]} 7. Nc3 {[%clk 0:04:50.3]} 7... Nc6 {[%clk 0:04:52.4]} 8. cxd5 {[%clk
0:04:47.8]} 8... Nxd5 {[%clk 0:04:51.2]} 9. Bc4 {[%clk 0:04:47.4]} 9... Nb6
{[%clk 0:04:49.3]} 10. Bb3 {[%clk 0:04:44.7]} 10... Be7 {[%clk 0:04:48.4]} 11.
O-O {[%clk 0:04:44.2]} 11... O-O {[%clk 0:04:47.5]} 12. Re1 {[%clk 0:04:38.3]}
12... Bg4 {[%clk 0:04:46.2]} 13. d5 {[%clk 0:04:32]} 13... Na5 {[%clk
0:04:31.6]} 14. Bc2 {[%clk 0:04:28]} 14... g6 {[%clk 0:04:21.8]} 15. Qd3 {[%clk
0:04:22.2]} 15... Nac4 {[%clk 0:04:13.2]} 16. b3 {[%clk 0:04:06.5]} 16... Nd6
{[%clk 0:04:01.5]} 17. Bf4 {[%clk 0:03:58.5]} 17... Bf6 {[%clk 0:03:55.5]} 18.
Ne5 {[%clk 0:03:53.9]} 18... Bf5 {[%clk 0:03:50.1]} 19. Qd2 {[%clk 0:03:53]}
19... Bxc2 {[%clk 0:03:39.9]} 20. Qxc2 {[%clk 0:03:51.8]} 20... Re8 {[%clk
0:03:31.4]} 21. Rad1 {[%clk 0:03:46.6]} 21... Nf5 {[%clk 0:03:27.3]} 22. Ng4
{[%clk 0:03:40.6]} 22... Bg7 {[%clk 0:03:23.4]} 23. Qd2 {[%clk 0:03:37.1]} 23...
Qh4 {[%clk 0:03:15.7]} 24. h3 {[%clk 0:03:22.9]} 24... Nd4 {[%clk 0:02:47.5]}
25. Bg5 {[%clk 0:03:14.4]} 25... Qh5 {[%clk 0:02:37.9]} 26. Bf6 {[%clk
0:03:02.7]} 26... Rxe1+ {[%clk 0:02:08.9]} 27. Rxe1 {[%clk 0:03:02.6]} 27... Nf5
{[%clk 0:02:03.1]} 28. Bxg7 {[%clk 0:02:51.7]} 28... Kxg7 {[%clk 0:02:00.3]} 29.
Re7 {[%clk 0:02:50.9]} 29... Qh4 {[%clk 0:01:51]} 30. Rxc7 {[%clk 0:02:40.9]}
30... h5 {[%clk 0:01:50.1]} 31. Ne5 {[%clk 0:02:33.9]} 31... Rf8 {[%clk
0:01:33.6]} 32. d6 {[%clk 0:02:25.6]} 32... Qf6 {[%clk 0:01:12.2]} 33. d7 {[%clk
0:01:55.8]} 33... Rd8 {[%clk 0:01:00.5]} 34. Qf4 {[%clk 0:01:31.8]} 34... Nxd7
{[%clk 0:00:48.2]} 35. Nxd7 {[%clk 0:01:27.7]} 35... Rxd7 {[%clk 0:00:46.7]} 36.
Rxd7 {[%clk 0:01:16.5]} 36... Qxc3 {[%clk 0:00:45.7]} 37. Rd1 {[%clk 0:01:13]}
37... Qc2 {[%clk 0:00:42.4]} 38. Qe5+ {[%clk 0:01:11.1]} 38... Kg8 {[%clk
0:00:40.9]} 39. Rd8+ {[%clk 0:01:08.8]} 39... Kh7 {[%clk 0:00:39]} 40. Rh8#
{[%clk 0:01:06.6]} 1-0

[Event "Live Chess"]
[Site "Chess.com"]
[Date "2024.06.01"]
[Round "-"]
[White "Richardallis"]
[Black "akp42"]
[Result "0-1"]
[WhiteElo "1954"]
[BlackElo "2009"]
[TimeControl "300"]
[EndTime "9:36:34 PDT"]
[Termination "akp42 won by checkmate"]

1. d4 {[%clk 0:04:56.2]} 1... Nf6 {[%clk 0:04:57.8]} 2. Nf3 {[%clk 0:04:55.5]}
2... d5 {[%clk 0:04:55.4]} 3. Bg5 {[%clk 0:04:54.8]} 3... Ne4 {[%clk 0:04:49.1]}
4. Bf4 {[%clk 0:04:53.7]} 4... e6 {[%clk 0:04:43.2]} 5. Nbd2 {[%clk 0:04:52.4]}
5... Nxd2 {[%clk 0:04:40.8]} 6. Qxd2 {[%clk 0:04:51.2]} 6... Bd6 {[%clk
0:04:40.3]} 7. c3 {[%clk 0:04:49.2]} 7... Bxf4 {[%clk 0:04:37.3]} 8. Qxf4 {[%clk
0:04:48.6]} 8... O-O {[%clk 0:04:29.9]} 9. e4 {[%clk 0:04:46.9]} 9... dxe4
{[%clk 0:04:27]} 10. Qxe4 {[%clk 0:04:46.2]} 10... Nd7 {[%clk 0:04:22.3]} 11.
Bd3 {[%clk 0:04:44.4]} 11... Nf6 {[%clk 0:04:21.1]} 12. Qh4 {[%clk 0:04:43.5]}
12... h6 {[%clk 0:04:16.7]} 13. Ne5 {[%clk 0:04:41.9]} 13... Qd5 {[%clk
0:04:09]} 14. O-O {[%clk 0:04:37.3]} 14... b6 {[%clk 0:04:06.9]} 15. f3 {[%clk
0:04:32.1]} 15... Bb7 {[%clk 0:04:00.9]} 16. Rad1 {[%clk 0:04:29.5]} 16... Qxa2
{[%clk 0:03:58.8]} 17. Rd2 {[%clk 0:04:27.3]} 17... Rad8 {[%clk 0:03:56]} 18.
Rfd1 {[%clk 0:04:22.2]} 18... Qa5 {[%clk 0:03:41.3]} 19. g4 {[%clk 0:04:12.7]}
19... c5 {[%clk 0:03:37.3]} 20. g5 {[%clk 0:04:06.6]} 20... hxg5 {[%clk
0:03:35.6]} 21. Qxg5 {[%clk 0:04:05.4]} 21... cxd4 {[%clk 0:03:34.5]} 22. cxd4
{[%clk 0:04:04.3]} 22... Rxd4 {[%clk 0:03:28]} 23. Rg2 {[%clk 0:03:53.4]} 23...
Ne8 {[%clk 0:03:07.6]} 24. Bh7+ {[%clk 0:03:44]} 24... Kxh7 {[%clk 0:03:05.5]}
25. Rxd4 {[%clk 0:03:43.5]} 25... Qe1# {[%clk 0:03:01]} 0-1

[Event "Live Chess"]
[Site "Chess.com"]
[Date "2024.06.01"]
[Round "-"]
[White "AnotherOneBadPlayer"]
[Black "MiflockHydra"]
[Result "1-0"]
[WhiteElo "2085"]
[BlackElo "587"]
[TimeControl "300"]
[EndTime "9:36:39 PDT"]
[Termination "AnotherOneBadPlayer won by resignation"]

1. Nf3 {[%clk 0:04:57.3]} 1... d5 {[%clk 0:04:37.3]} 2. b3 {[%clk 0:04:54.5]}
2... Bf5 {[%clk 0:04:32.8]} 3. Bb2 {[%clk 0:04:50.9]} 3... e6 {[%clk 0:04:28.3]}
4. e3 {[%clk 0:04:46.3]} 4... Be7 {[%clk 0:04:25]} 5. Bxg7 {[%clk 0:04:37.7]}
5... Bf6 {[%clk 0:04:16.2]} 6. Bxh8 {[%clk 0:04:33.6]} 6... Bxh8 {[%clk
0:04:14.6]} 7. Nc3 {[%clk 0:04:32.3]} 7... b5 {[%clk 0:04:11.4]} 8. Bxb5+ {[%clk
0:04:20.7]} 8... c6 {[%clk 0:04:08]} 9. Be2 {[%clk 0:04:19.2]} 9... Bxc3 {[%clk
0:04:00.7]} 10. dxc3 {[%clk 0:04:14.8]} 10... Qa5 {[%clk 0:03:59]} 11. b4 {[%clk
0:04:03.2]} 11... Qa3 {[%clk 0:03:56.6]} 12. Qd4 {[%clk 0:03:59.9]} 12... Ne7
{[%clk 0:03:49.6]} 13. O-O {[%clk 0:03:54.4]} 1-0

[Event "Live Chess"]
[Site "Chess.com"]
[Date "2024.06.01"]
[Round "-"]
[White "MagnersCarlsberg2870"]
[Black "TC2304"]
[Result "0-1"]
[WhiteElo "1880"]
[BlackElo "2338"]
[TimeControl "300"]
[EndTime "9:36:53 PDT"]
[Termination "TC2304 won by resignation"]

1. Nf3 {[%clk 0:04:56.6]} 1... Nf6 {[%clk 0:04:55.6]} 2. g3 {[%clk 0:04:55.1]}
2... b5 {[%clk 0:04:36.9]} 3. Bg2 {[%clk 0:04:53.3]} 3... Bb7 {[%clk 0:04:36.6]}
4. d3 {[%clk 0:04:52.1]} 4... e6 {[%clk 0:04:36.3]} 5. O-O {[%clk 0:04:51.3]}
5... Be7 {[%clk 0:04:35.9]} 6. e4 {[%clk 0:04:49.2]} 6... c5 {[%clk 0:04:35.5]}
7. Nbd2 {[%clk 0:04:47.9]} 7... d6 {[%clk 0:04:34.8]} 8. Re1 {[%clk 0:04:44.1]}
8... O-O {[%clk 0:04:34.4]} 9. Nf1 {[%clk 0:04:41.5]} 9... Nbd7 {[%clk 0:04:34]}
10. h4 {[%clk 0:04:37.5]} 10... a5 {[%clk 0:04:33.6]} 11. Bf4 {[%clk 0:04:32]}
11... a4 {[%clk 0:04:17.7]} 12. N1h2 {[%clk 0:04:29.1]} 12... e5 {[%clk
0:04:01.3]} 13. Bg5 {[%clk 0:04:25.2]} 13... c4 {[%clk 0:03:59.9]} 14. dxc4
{[%clk 0:04:13.9]} 14... bxc4 {[%clk 0:03:57.5]} 15. Nd2 {[%clk 0:04:13.2]}
15... c3 {[%clk 0:03:49]} 16. bxc3 {[%clk 0:04:11.9]} 16... Rc8 {[%clk
0:03:48.7]} 17. f4 {[%clk 0:04:10.6]} 17... Rxc3 {[%clk 0:03:40.8]} 18. Rb1
{[%clk 0:04:09.6]} 18... Ba6 {[%clk 0:03:27.3]} 19. Ndf3 {[%clk 0:04:03.5]}
19... Qc7 {[%clk 0:03:19.3]} 20. Bxf6 {[%clk 0:03:56.8]} 20... Nxf6 {[%clk
0:03:07.9]} 21. fxe5 {[%clk 0:03:53.4]} 21... dxe5 {[%clk 0:03:07.5]} 22. Ng5
{[%clk 0:03:15.1]} 22... Rxc2 {[%clk 0:02:56.4]} 23. Ng4 {[%clk 0:03:14.2]}
23... Qc5+ {[%clk 0:02:52]} 24. Kh1 {[%clk 0:03:11.2]} 24... Nxg4 {[%clk
0:02:48.3]} 25. Qxg4 {[%clk 0:03:09.9]} 25... Qf2 {[%clk 0:02:44.6]} 26. Rg1
{[%clk 0:03:05.1]} 26... Be2 {[%clk 0:02:36.9]} 27. Qd7 {[%clk 0:03:00.9]} 27...
Bxg5 {[%clk 0:02:30.4]} 28. hxg5 {[%clk 0:02:59.3]} 28... Bf3 {[%clk 0:02:21.7]}
29. Qh3 {[%clk 0:02:53.5]} 29... Bxg2+ {[%clk 0:02:16.4]} 30. Rxg2 {[%clk
0:02:51.9]} 30... Qf3 {[%clk 0:02:05.8]} 31. Kh2 {[%clk 0:02:30.5]} 31... Qxe4
{[%clk 0:02:03.3]} 32. Rxc2 {[%clk 0:02:28.5]} 32... Qxc2+ {[%clk 0:02:03.2]}
0-1

[Event "Live Chess"]
[Site "Chess.com"]
[Date "2024.06.01"]
[Round "-"]
[White "elephantgerrald"]
[Black "alexholowczak"]
[Result "0-1"]
[WhiteElo "713"]
[BlackElo "1456"]
[TimeControl "300"]
[EndTime "9:36:54 PDT"]
[Termination "alexholowczak won by checkmate"]

1. e4 {[%clk 0:04:58.3]} 1... e6 {[%clk 0:04:58.9]} 2. Nf3 {[%clk 0:04:57.1]}
2... d5 {[%clk 0:04:57.4]} 3. exd5 {[%clk 0:04:55.8]} 3... exd5 {[%clk
0:04:55.9]} 4. Qe2+ {[%clk 0:04:54.8]} 4... Be6 {[%clk 0:04:54.2]} 5. Nc3 {[%clk
0:04:53.9]} 5... Nf6 {[%clk 0:04:52.4]} 6. d4 {[%clk 0:04:52.4]} 6... Bb4 {[%clk
0:04:34.6]} 7. Bd2 {[%clk 0:04:51]} 7... O-O {[%clk 0:04:31.1]} 8. a3 {[%clk
0:04:44.5]} 8... Bxc3 {[%clk 0:04:25.9]} 9. Bxc3 {[%clk 0:04:42.5]} 9... c6
{[%clk 0:04:24.6]} 10. O-O-O {[%clk 0:04:39.8]} 10... Nbd7 {[%clk 0:04:22.1]}
11. Qd3 {[%clk 0:03:54.5]} 11... b5 {[%clk 0:04:13.8]} 12. b4 {[%clk 0:03:49.2]}
12... Qe7 {[%clk 0:04:07.8]} 13. h3 {[%clk 0:03:45.2]} 13... a5 {[%clk
0:04:00.4]} 14. Kb2 {[%clk 0:03:40.8]} 14... Ne4 {[%clk 0:03:54.4]} 15. Qe3
{[%clk 0:03:36.3]} 15... Nb6 {[%clk 0:03:44.7]} 16. g3 {[%clk 0:03:32.5]} 16...
Nc4+ {[%clk 0:03:42.3]} 17. Bxc4 {[%clk 0:03:29.3]} 17... bxc4 {[%clk
0:03:37.7]} 18. Ne5 {[%clk 0:03:21.5]} 18... Qb7 {[%clk 0:03:30.5]} 19. f3
{[%clk 0:03:16]} 19... Nxc3 {[%clk 0:03:27.2]} 20. Qxc3 {[%clk 0:03:12.2]} 20...
Rfb8 {[%clk 0:03:20.3]} 21. Rb1 {[%clk 0:03:04.7]} 21... axb4 {[%clk 0:03:15]}
22. axb4 {[%clk 0:03:01.9]} 22... Qxb4+ {[%clk 0:03:12.6]} 23. Qxb4 {[%clk
0:03:00.6]} 23... Rxb4+ {[%clk 0:03:10.8]} 24. Kc3 {[%clk 0:02:59.4]} 24... Rxb1
{[%clk 0:03:04.5]} 25. Rxb1 {[%clk 0:02:57.9]} 25... h6 {[%clk 0:02:57.7]} 26.
f4 {[%clk 0:02:52.9]} 26... Ra3+ {[%clk 0:02:54.5]} 27. Kb4 {[%clk 0:02:45.5]}
27... Rxg3 {[%clk 0:02:52.5]} 28. Nxc6 {[%clk 0:02:32.9]} 28... Rxh3 {[%clk
0:02:47.2]} 29. Ne7+ {[%clk 0:02:29.8]} 29... Kh7 {[%clk 0:02:45.3]} 30. Kc5
{[%clk 0:02:24.1]} 30... Rc3 {[%clk 0:02:41.4]} 31. Nxd5 {[%clk 0:02:19.5]}
31... Bxd5 {[%clk 0:02:36.2]} 32. Kxd5 {[%clk 0:02:18.3]} 32... Rxc2 {[%clk
0:02:33.6]} 33. Rb4 {[%clk 0:02:12.8]} 33... c3 {[%clk 0:02:23]} 34. Rb7 {[%clk
0:02:09.8]} 34... Kg6 {[%clk 0:02:21.2]} 35. Rb6+ {[%clk 0:02:03.7]} 35... f6
{[%clk 0:02:19.1]} 36. Ke4 {[%clk 0:01:59.3]} 36... h5 {[%clk 0:02:15.6]} 37.
Kd3 {[%clk 0:01:55.9]} 37... Rc1 {[%clk 0:02:13.4]} 38. Rb3 {[%clk 0:01:52.3]}
38... h4 {[%clk 0:02:10.2]} 39. Ke2 {[%clk 0:01:42.7]} 39... h3 {[%clk
0:01:59.2]} 40. f5+ {[%clk 0:01:36]} 40... Kxf5 {[%clk 0:01:53.6]} 41. Rb5+
{[%clk 0:01:34.8]} 41... Kg6 {[%clk 0:01:49]} 42. d5 {[%clk 0:01:26.9]} 42... h2
{[%clk 0:01:47]} 43. d6 {[%clk 0:01:23.6]} 43... h1=Q {[%clk 0:01:44.9]} 44. d7
{[%clk 0:01:22.1]} 44... Qd1+ {[%clk 0:01:42.9]} 45. Ke3 {[%clk 0:01:18.5]}
45... Qd2+ {[%clk 0:01:39.2]} 46. Ke4 {[%clk 0:01:16.9]} 46... Re1+ {[%clk
0:01:37.3]} 47. Kf3 {[%clk 0:01:15.2]} 47... Qe2+ {[%clk 0:01:34]} 48. Kf4
{[%clk 0:01:13.4]} 48... Qf2+ {[%clk 0:01:30.3]} 49. Kg4 {[%clk 0:01:11.5]}
49... Rg1+ {[%clk 0:01:26.3]} 50. Kh3 {[%clk 0:01:04.2]} 50... Qg3# {[%clk
0:01:24.6]} 0-1